Workbook

Sheet Mittelhilfstabelle
A2: Stunde | B2: Luftfeuchtigkeit | C2: Luftdruck | D2: Taupunkttemperatur | E2: Bewölkung | G2: Stunde | H2: Luftfeuchtigkeit | I2: Luftdruck | J2: Taupunkttemperatur | K2: Bewölkung
A3: 00 | B3: 55 | C3: 1021.1 | D3: 4.4 | E3: 0 | G3: 00 | H3: 88 | I3: 1025.4 | J3: 8.9 | K3: 8
A4: 01 | B4: 62 | C4: 1021.4 | D4: 5 | E4: 2 | G4: 01 | H4: 89 | I4: 1025.7 | J4: 9.3 | K4: 8
A5: 02 | B5: 63 | C5: 1021.5 | D5: 5.2 | E5: 3 | G5: 02 | H5: 88 | I5: 1025.5 | J5: 9.1 | K5: 8
A6: 03 | B6: 69 | C6: 1021.5 | D6: 5 | E6: 2 | G6: 03 | H6: 83 | I6: 1025.4 | J6: 8.5 | K6: 8
A7: 04 | B7: 70 | C7: 1021.7 | D7: 5.4 | E7: 4 | G7: 04 | H7: 80 | I7: 1025.6 | J7: 8.2 | K7: 8
A8: 05 | B8: 69 | C8: 1021.9 | D8: 5.7 | E8: 6 | G8: 05 | H8: 82 | I8: 1025.8 | J8: 8.4 | K8: 8
A9: 06 | B9: 76 | C9: 1021.7 | D9: 5.5 | E9: 1 | G9: 06 | H9: 82 | I9: 1026 | J9: 8.4 | K9: 8
A10: 07 | B10: 75 | C10: 1022 | D10: 6.2 | E10: 4 | G10: 07 | H10: 89 | I10: 1026.6 | J10: 9.1 | K10: 8
A11: 08 | B11: 67 | C11: 1022.5 | D11: 7.3 | E11: 7 | G11: 08 | H11: 96 | I11: 1026.7 | J11: 10.1 | K11: 8
A12: 09 | B12: 61 | C12: 1023 | D12: 6.9 | E12: 4 | G12: 09 | H12: 95 | I12: 1026.9 | J12: 10.6 | K12: 8
A13: 10 | B13: 59 | C13: 1023.2 | D13: 7.3 | E13: 7 | G13: 10 | H13: 91 | I13: 1027 | J13: 11.2 | K13: 8
A14: 11 | B14: 58 | C14: 1023.1 | D14: 7.8 | E14: 6 | G14: 11 | H14: 80 | I14: 1026.6 | J14: 11.5 | K14: 7
A15: 12 | B15: 54 | C15: 1022.6 | D15: 7.4 | E15: 6 | G15: 12 | H15: 76 | I15: 1026.4 | J15: 11.3 | K15: 7
A16: 13 | B16: 58 | C16: 1022.4 | D16: 7.5 | E16: 7 | G16: 13 | H16: 67 | I16: 1026.1 | J16: 9.9 | K16: 7
A17: 14 | B17: 58 | C17: 1022.3 | D17: 7.8 | E17: 7 | G17: 14 | H17: 66 | I17: 1025.9 | J17: 10.3 | K17: 7
A18: 15 | B18: 58 | C18: 1021.8 | D18: 7.8 | E18: 8 | G18: 15 | H18: 63 | I18: 1025.6 | J18: 9.9 | K18: 6
A19: 16 | B19: 60 | C19: 1021.7 | D19: 8 | E19: 8 | G19: 16 | H19: 67 | I19: 1025.9 | J19: 10.5 | K19: 7
A20: 17 | B20: 63 | C20: 1021.7 | D20: 8.2 | E20: 8 | G20: 17 | H20: 66 | I20: 1025 | J20: 10.4 | K20: 6
A21: 18 | B21: 65 | C21: 1021.9 | D21: 8 | E21: 8 | G21: 18 | H21: 71 | I21: 1024.8 | J21: 10.2 | K21: 3
A22: 19 | B22: 68 | C22: 1022.4 | D22: 8.2 | E22: 8 | G22: 19 | H22: 76 | I22: 1025 | J22: 9.9 | K22: 1
A23: 20 | B23: 70 | C23: 1023.4 | D23: 8.5 | E23: 8 | G23: 20 | H23: 83 | I23: 1025.3 | J23: 9.1 | K23: 1
A24: 21 | B24: 78 | C24: 1024.2 | D24: 8.4 | E24: 8 | G24: 21 | H24: 82 | I24: 1025.3 | J24: 8.7 | K24: 1
A25: 22 | B25: 82 | C25: 1024.8 | D25: 8.6 | E25: 7 | G25: 22 | H25: 85 | I25: 1025.2 | J25: 8.1 | K25: 1
A26: 23 | B26: 86 | C26: 1025.1 | D26: 9 | E26: 8 | G26: 23 | H26: 88 | I26: 1024.9 | J26: 7.6 | K26: 2
A27: Mittel | B27: =ROUND(AVERAGE(B3:B26),1) -> 66 | C27: =ROUND(AVERAGE(C3:C26),1) -> 1022.5 | D27: =AVERAGE(D3:D26) -> 7.045833333 | E27: =ROUND(AVERAGE(E3:E26),1) -> 5.7 | G27: Mittel | H27: =ROUND(AVERAGE(H3:H26),1) -> 80.5 | I27: =ROUND(AVERAGE(I3:I26),1) -> 1025.8 | J27: =AVERAGE(J3:J26) -> 9.55 | K27: =ROUND(AVERAGE(K3:K26),1) -> 6
D29: 2017-03-29 | J29: 2017-03-30
A32: Stunde | B32: Luftfeuchtigkeit | C32: Luftdruck | D32: Taupunkttemperatur | E32: Bewölkung | G32: Stunde | H32: Luftfeuchtigkeit | I32: Luftdruck | J32: Taupunkttemperatur | K32: Bewölkung
A33: 00 | B33: 88 | C33: 1024.6 | D33: 7.3 | E33: 2 | G33: 00 | H33: 70 | I33: 1024 | J33: 0.7 | K33: 0
A34: 01 | B34: 90 | C34: 1024.2 | D34: 6.8 | E34: 2 | G34: 01 | H34: 73 | I34: 1023.7 | J34: 0.5 | K34: 0
A35: 02 | B35: 90 | C35: 1023.6 | D35: 6.3 | E35: 2 | G35: 02 | H35: 75 | I35: 1023.6 | J35: 0.6 | K35: 0
A36: 03 | B36: 91 | C36: 1023.1 | D36: 6.2 | E36: 2 | G36: 03 | H36: 77 | I36: 1023.2 | J36: 0.5 | K36: 0
A37: 04 | B37: 92 | C37: 1022.6 | D37: 6 | E37: 2 | G37: 04 | H37: 79 | I37: 1022.7 | J37: 0.4 | K37: 0
A38: 05 | B38: 92 | C38: 1022 | D38: 6.1 | E38: 2 | G38: 05 | H38: 76 | I38: 1022.8 | J38: 0.3 | K38: 0
A39: 06 | B39: 94 | C39: 1021.7 | D39: 6.1 | E39: 2 | G39: 06 | H39: 77 | I39: 1023.1 | J39: 0.4 | K39: 0
A40: 07 | B40: 93 | C40: 1021.8 | D40: 7.7 | E40: 2 | G40: 07 | H40: 76 | I40: 1023.1 | J40: 1.5 | K40: 0
A41: 08 | B41: 86 | C41: 1021.3 | D41: 9.8 | E41: 2 | G41: 08 | H41: 72 | I41: 1023.2 | J41: 3 | K41: 0
A42: 09 | B42: 74 | C42: 1020.8 | D42: 10.9 | E42: 2 | G42: 09 | H42: 68 | I42: 1023.4 | J42: 4.8 | K42: 0
A43: 10 | B43: 62 | C43: 1020.5 | D43: 10.7 | E43: 2 | G43: 10 | H43: 56 | I43: 1023.4 | J43: 5.1 | K43: 0
A44: 11 | B44: 51 | C44: 1020 | D44: 9.7 | E44: 2 | G44: 11 | H44: 47 | I44: 1023.2 | J44: 5.1 | K44: 0
A45: 12 | B45: 48 | C45: 1019.2 | D45: 9.6 | E45: 2 | G45: 12 | H45: 43 | I45: 1022.6 | J45: 5.3 | K45: 0
A46: 13 | B46: 51 | C46: 1018.3 | D46: 10.6 | E46: 3 | G46: 13 | H46: 38 | I46: 1021.8 | J46: 4.7 | K46: 0
A47: 14 | B47: 52 | C47: 1017.5 | D47: 11.2 | E47: 5 | G47: 14 | H47: 32 | I47: 1021.2 | J47: 2.5 | K47: 1
A48: 15 | B48: 49 | C48: 1016.7 | D48: 10.8 | E48: 4 | G48: 15 | H48: 36 | I48: 1020.7 | J48: 4.4 | K48: 1
A49: 16 | B49: 50 | C49: 1015.9 | D49: 10.4 | E49: 5 | G49: 16 | H49: 35 | I49: 1020.3 | J49: 3.5 | K49: 1
A50: 17 | B50: 54 | C50: 1015.3 | D50: 10.6 | E50: 7 | G50: 17 | H50: 37 | I50: 1020 | J50: 3.5 | K50: 1
A51: 18 | B51: 54 | C51: 1014.9 | D51: 9.8 | E51: 7 | G51: 18 | H51: 47 | I51: 1020 | J51: 5.5 | K51: 1
A52: 19 | B52: 62 | C52: 1015 | D52: 9.7 | E52: 5 | G52: 19 | H52: 48 | I52: 1020.4 | J52: 4.3 | K52: 1
A53: 20 | B53: 63 | C53: 1015 | D53: 9.3 | E53: 5 | G53: 20 | H53: 57 | I53: 1020.7 | J53: 5 | K53: 1
A54: 21 | B54: 67 | C54: 1014.8 | D54: 9.1 | E54: 3 | G54: 21 | H54: 69 | I54: 1021 | J54: 5.4 | K54: 1
A55: 22 | B55: 70 | C55: 1014.6 | D55: 8.7 | E55: 0 | G55: 22 | H55: 63 | I55: 1021 | J55: 4.4 | K55: 1
A56: 23 | B56: 73 | C56: 1014.5 | D56: 8.8 | E56: 0 | G56: 23 | H56: 55 | I56: 1021 | J56: 3.9 | K56: 0
A57: Mittel | B57: =ROUND(AVERAGE(B33:B56),1) -> 70.7 | C57: =ROUND(AVERAGE(C33:C56),1) -> 1019.1 | D57: =ROUND(AVERAGE(D33:D56),1) -> 8.8 | E57: =ROUND(AVERAGE(E33:E56),1) -> 2.9 | G57: Mittel | H57: =ROUND(AVERAGE(H33:H56),1) -> 58.6 | I57: =ROUND(AVERAGE(I33:I56),1) -> 1022.1 | J57: =ROUND(AVERAGE(J33:J56),1) -> 3.1 | K57: =ROUND(AVERAGE(K33:K56),1) -> 0.4
D59: 2017-03-31 | J59: 2017-03-28

Sheet Kurztabelle
A2: Wetterwarte: Köttewitz | L2: Monat: | M2: März | R2: Jahr: | U2: 2017
A4: Dat. | B4: TTT | C4: TxTx | D4: TnTn | E4: Tg | F4: Umin. | G4: UU | H4: NN | I4: RRRR | J4: Art | L4: sss | M4: PPPP | N4: eee | O4: fff | R4: Tage mit | V4: fk | W4: Summe
J5: * | O5: Km/h | P5: SS | Q5: Art ( D ) | R5: RR | S5: Ge | T5: Bf6 | U5: Bf8 | V5: Km/h | W5: Gewitter
A6: 01. | B6: 6.1 | C6: 9.6 | D6: 2.7 | E6: 0 | F6: 59 | G6: 74 | H6: 6.8 | I6: 0.6 | J6: l | L6: 0.9 | M6: 1002 | N6: 1.7 | O6: 12 | R6: 1 | T6: 1 | V6: 50 | AA6: max >=30,0°C | AB6: max >=25,0°C | AC6: max <0,0°C | AE6: RR >=0,1 mm | AF6: RR >=1,0 mm | AG6: RR >=3,0 mm | AH6: RR >=10,0 mm | AI6: RR >=20,0 mm
A7: 02. | B7: 6.9 | C7: 10.5 | D7: 4.7 | E7: 2.8 | F7: 47 | G7: 72 | H7: 6.5 | I7: 0.6 | J7: l | L7: 2.8 | M7: 1006.3 | N7: 2 | O7: 18 | R7: 1 | T7: 1 | U7: 1 | V7: 68 | AA7: =COUNTIF(C6:C15,">=30") -> 0 | AB7: =COUNTIF(C6:C15,">=25") -> 0 | AC7: =COUNTIF(C6:C15,"<0") -> 0 | AE7: =COUNTIF(I6:I15,">=0,1") -> 8 | AF7: =COUNTIF(I6:I15,">=1") -> 4 | AG7: =COUNTIF(I6:I15,">=3") -> 3 | AH7: =COUNTIF(I6:I15,">=10") -> 0 | AI7: =COUNTIF(I6:I15,">=20") -> 0
A8: 03. | B8: 7.5 | C8: 11.5 | D8: 2.2 | E8: -0.6 | F8: 49 | G8: 65 | H8: 5.9 | I8: . | L8: 6.7 | M8: 1012.8 | N8: 1.1 | O8: 12 | T8: 1 | V8: 43 | AA8: =COUNTIF(C18:C27,">=30") -> 0 | AB8: =COUNTIF(C18:C27,">=25") -> 0 | AC8: =COUNTIF(C18:C27,"<0") -> 0 | AE8: =COUNTIF(I18:I27,">=0,1") -> 3 | AF8: =COUNTIF(I18:I27,">=1") -> 3 | AG8: =COUNTIF(I18:I27,">=3") -> 3 | AH8: =COUNTIF(I18:I27,">=10") -> 0 | AI8: =COUNTIF(I18:I27,">=20") -> 0
A9: 04. | B9: 9.5 | C9: 14.5 | D9: 5.2 | E9: 3.3 | F9: 56 | G9: 70 | H9: 7.6 | I9: . | L9: 4.1 | M9: 999.5 | N9: 4.1 | O9: 10 | V9: 35 | AA9: =COUNTIF(C30:C40,">=30") -> 0 | AB9: =COUNTIF(C30:C40,">=25") -> 0 | AC9: =COUNTIF(C30:C40,"<0") -> 0 | AE9: =COUNTIF(I30:I40,">=0,1") -> 4 | AF9: =COUNTIF(I30:I40,">=1") -> 1 | AG9: =COUNTIF(I30:I40,">=3") -> 1 | AH9: =COUNTIF(I30:I40,">=10") -> 0 | AI9: =COUNTIF(I30:I40,">=20") -> 0
A10: 05. | B10: 9.2 | C10: 12.6 | D10: 3.5 | E10: 0.6 | F10: 58 | G10: 65 | H10: 6.3 | I10: 0.1 | J10: l | L10: 0.1 | M10: 1002.1 | N10: 3.1 | O10: 8 | R10: 1 | T10: 1 | V10: 42
A11: 06. | B11: 4.9 | C11: 7.8 | D11: 2.6 | E11: 0 | F11: 76 | G11: 87 | H11: 6.9 | I11: 7.4 | J11: l | L11: 0.6 | M11: 1001.4 | N11: 2.9 | O11: 5 | R11: 1 | V11: 32 | AA11: min <0,0°C | AB11: min <0-10,0°C | AE11: rel.Lf. 14h >=70% | AG11: rel.Lf. 14h <=40%
A12: 07. | B12: 3.1 | C12: 4.5 | D12: 2 | E12: 1.7 | F12: 91 | G12: 95 | H12: 7.8 | I12: 0.2 | J12: lT | L12: . | M12: 1011.1 | N12: 2.5 | O12: 5 | R12: 1 | V12: 31 | AA12: =COUNTIF(D6:D15,"<0") -> 0 | AB12: =COUNTIF(D6:D15,"<=-10") -> 0 | AE12: =COUNTIF(F6:F15,">=70") -> 3 | AG12: =COUNTIF(F6:F15,"<=40") -> 0
A13: 08. | B13: 5.3 | C13: 9.8 | D13: 1.4 | E13: 0 | F13: 63 | G13: 83 | H13: 7.1 | I13: 4.8 | J13: l | L13: 2.1 | M13: 1020.9 | N13: 2.4 | O13: 8 | R13: 1 | V13: 35 | AA13: =COUNTIF(D18:D27,"<0") -> 2 | AB13: =COUNTIF(D18:D27,"<=-10") -> 0 | AE13: =COUNTIF(F18:F27,">=70") -> 1 | AG13: =COUNTIF(F18:F27,"<=40") -> 0
A14: 09. | B14: 7.3 | C14: 11.6 | D14: 4.2 | E14: 3.3 | F14: 66 | G14: 86 | H14: 7.3 | I14: 8.9 | J14: l | L14: 1.1 | M14: 1016.4 | N14: 5.1 | O14: 8 | R14: 1 | T14: 1 | V14: 53 | AA14: =COUNTIF(D30:D40,"<0") -> 2 | AB14: =COUNTIF(D30:D40,"<=-10") -> 0 | AE14: =COUNTIF(F30:F40,">=70") -> 2 | AG14: =COUNTIF(F30:F40,"<=40") -> 2
A15: 10. | B15: 5.6 | C15: 7.8 | D15: 4.2 | E15: 3.3 | F15: 72 | G15: 87 | H15: 7.2 | I15: 1.4 | J15: l | L15: 0.3 | M15: 1021.8 | N15: 3.5 | O15: 12 | R15: 1 | T15: 1 | V15: 50
A16: Su | B16: =SUM(B6:B15) -> 65.4 | C16: =SUM(C6:C15) -> 100.2 | D16: =SUM(D6:D15) -> 32.7 | E16: =SUM(E6:E15) -> 14.4 | F16: XXX | G16: XXX | H16: XXX | I16: =SUM(I6:I15) -> 24 | J16: XX | L16: =SUM(L6:L15) -> 18.7 | M16: XXX | N16: XXX | O16: XXX | P16: XXX | Q16: X | R16: =SUM(R6:R15) -> 8 | S16: =SUM(S6:S15) -> 0 | T16: =SUM(T6:T15) -> 6 | U16: =SUM(U6:U15) -> 1 | V16: XXX | AA16: ohne Sonne | AB16: Son. 0,1-0,9 | AC16: Son. >=10,0 | AE16: Sch. >=1 cm | AF16: Sch. >=3 cm | AG16: Sch. >=10 cm
A17: Mi | B17: =AVERAGE(B6:B15) -> 6.54 | C17: =AVERAGE(C6:C15) -> 10.02 | D17: 3.27 | E17: 1.44 | F17: 63.7 | G17: 78.4 | H17: 6.94 | I17: XXX | J17: XX | L17: XXX | M17: =AVERAGE(M6:M15) -> 1009.43 | N17: =AVERAGE(N6:N15) -> 2.84 | O17: =AVERAGE(O6:O15) -> 9.8 | P17: =AVERAGE(P6:P15) ->  | Q17: X | R17: XX | S17: XX | T17: XX | U17: XX | V17: =AVERAGE(V6:V15) -> 43.9 | AA17: =COUNTIF(L6:L15,".") -> 1 | AB17: =COUNTIF(L6:L15,"<1") -> 4 | AC17: =COUNTIF(L6:L15,">=10") -> 0 | AE17: =COUNTIF(P6:P15,">=1") -> 0 | AF17: =COUNTIF(P6:P15,">=3") -> 0 | AG17: =COUNTIF(P6:P15,">=10") -> 0
A18: 11. | B18: 4.8 | C18: 8.3 | D18: 0.1 | E18: -1.7 | F18: 69 | G18: 85 | H18: 4.9 | I18: . | L18: 0.3 | M18: 1025.6 | N18: 2.1 | O18: 3 | V18: 18 | AA18: =COUNTIF(L18:L27,".") -> 0 | AB18: =COUNTIF(L18:L27,"<1") -> 3 | AC18: =COUNTIF(L18:L27,">=10") -> 0 | AE18: =COUNTIF(P18:P27,">=1") -> 0 | AF18: =COUNTIF(P18:P27,">=3") -> 0 | AG18: =COUNTIF(P18:P27,">=10") -> 0
A19: 12. | B19: 2.8 | C19: 8.4 | D19: -1.9 | E19: -3.9 | F19: 56 | G19: 82 | H19: 3.5 | I19: . | L19: 3.7 | M19: 1022.8 | N19: -0.3 | O19: 5 | V19: 27 | AA19: =COUNTIF(L30:L40,".") -> 0 | AB19: =COUNTIF(L30:L40,"<1") -> 4 | AC19: =COUNTIF(L30:L40,">=10") -> 0 | AE19: =COUNTIF(P30:P40,">=1") -> 0 | AF19: =COUNTIF(P30:P40,">=3") -> 0 | AG19: =COUNTIF(P30:P40,">=10") -> 0
A20: 13. | B20: 3.7 | C20: 9.3 | D20: -2.2 | E20: -3.9 | F20: 54 | G20: 78 | H20: 6.1 | I20: . | L20: 3.8 | M20: 1026.2 | N20: -0.1 | O20: 2 | V20: 15
A21: 14. | B21: 7.1 | C21: 11.7 | D21: 2 | E21: -0.6 | F21: 53 | G21: 78 | H21: 6.1 | I21: . | L21: 1.9 | M21: 1029.4 | N21: 3.1 | O21: 5 | V21: 31 | AA21: Max TT | AB21: Max TxTx | AC21: Min TgTg | AE21: Max RR
A22: 15. | B22: 9.4 | C22: 12.4 | D22: 4.3 | E22: 2.8 | F22: 49 | G22: 71 | H22: 5.3 | I22: . | L22: 3.7 | M22: 1028.4 | N22: 4.3 | O22: 11 | T22: 1 | V22: 50 | AA22: =MAX(B6:B15,B18:B27,B30:B40) -> 14.7 | AB22: =MAX(C6:C15,C18:C27,C30:C40) -> 22.1 | AC22: =MIN(E6:E15,E18:E27,E30:E40) -> -3.9 | AE22: =MAX(I6:I15,I18:I27,I30:I40) -> 8.9
A23: 16. | B23: 7.4 | C23: 13 | D23: 3.8 | E23: 1.1 | F23: 52 | G23: 73 | H23: 3.6 | I23: . | L23: 8.3 | M23: 1024.7 | N23: 2.7 | O23: 6 | V23: 29 | AA23: Min TT | AB23: Min TnTn | AC23: Min U14 | AE23: Max SS
A24: 17. | B24: 7.4 | C24: 14.3 | D24: 2.7 | E24: 0 | F24: 53 | G24: 79 | H24: 5.4 | I24: 6.9 | J24: l | L24: 2.2 | M24: 1013 | N24: 3.8 | O24: 8 | R24: 1 | V24: 37 | AA24: =MIN(B6:B15,B18:B27,B30:B40) -> 2.8 | AB24: =MIN(D6:D15,D18:D27,D30:D40) -> -2.2 | AC24: =MIN(F6:F15,F18:F27,F30:F40) -> 30 | AE24: =MAX(P6:P15,P18:P27,P30:P40) -> 0
A25: 18. | B25: 6.6 | C25: 10.2 | D25: 3 | E25: 2.8 | F25: 69 | G25: 84 | H25: 7.3 | I25: 4.8 | J25: l | L25: 0.1 | M25: 1003.5 | N25: 4 | O25: 16 | R25: 1 | T25: 1 | U25: 1 | V25: 71
A26: 19. | B26: 7.6 | C26: 12.2 | D26: 3 | E26: 1.7 | F26: 75 | G26: 85 | H26: 6.5 | I26: 5.1 | J26: l | L26: 0.7 | M26: 1007.9 | N26: 5 | O26: 9 | R26: 1 | T26: 1 | V26: 47
A27: 20. | B27: 11.6 | C27: 14.8 | D27: 9.6 | E27: 7.8 | F27: 67 | G27: 75 | H27: 7.2 | I27: . | L27: 1.9 | M27: 1007.9 | N27: 7.3 | O27: 14 | T27: 1 | V27: 52
A28: Su | B28: =SUM(B18:B27) -> 68.4 | C28: =SUM(C18:C27) -> 114.6 | D28: =SUM(D18:D27) -> 24.4 | E28: =SUM(E18:E27) -> 6.1 | F28: XXX | G28: XXX | H28: XXX | I28: =SUM(I18:I27) -> 16.8 | J28: XX | L28: =SUM(L18:L27) -> 26.6 | M28: XXX | N28: XXX | O28: XXX | P28: XXX | Q28: X | R28: =SUM(R18:R27) -> 3 | S28: =SUM(S18:S27) -> 0 | T28: =SUM(T18:T27) -> 4 | U28: =SUM(U18:U27) -> 1 | V28: XXX
A29: Mi | B29: =AVERAGE(B18:B27) -> 6.84 | C29: =AVERAGE(C18:C27) -> 11.46 | D29: 2.44 | E29: 0.61 | F29: 59.7 | G29: 79 | H29: 5.59 | I29: XXX | J29: XX | L29: XXX | M29: =AVERAGE(M18:M27) -> 1018.94 | N29: =AVERAGE(N18:N27) -> 3.19 | O29: =AVERAGE(O18:O27) -> 7.9 | P29: =AVERAGE(P18:P27) ->  | Q29: X | R29: XX | S29: XX | T29: XX | U29: XX | V29: =AVERAGE(V18:V27) -> 37.7
A30: 21. | B30: 10.4 | C30: 13.9 | D30: 5.4 | E30: 5 | F30: 66 | G30: 76 | H30: 7.6 | I30: 4 | J30: l | L30: 0.4 | M30: 1009 | N30: 6.5 | O30: 11 | R30: 1 | T30: 1 | V30: 39
A31: 22. | B31: 6.5 | C31: 9.7 | D31: 4.7 | E31: 3.9 | F31: 73 | G31: 88 | H31: 7.7 | I31: 0.4 | J31: l | L31: 0.1 | M31: 1016.7 | N31: 4.6 | O31: 6 | R31: 1 | V31: 24
A32: 23. | B32: 6.6 | C32: 9.3 | D32: 3.4 | E32: 2.2 | F32: 80 | G32: 89 | H32: 7.8 | I32: 0 | J32: l | L32: 0.5 | M32: 1018.8 | N32: 4.8 | O32: 3 | V32: 13
A33: 24. | B33: 7.4 | C33: 11.7 | D33: 2.4 | E33: 0 | F33: 59 | G33: 80 | H33: 4 | I33: . | L33: 8.2 | M33: 1028.7 | N33: 4 | O33: 5 | V33: 21
A34: 25. | B34: 6.2 | C34: 11.9 | D34: -0.2 | E34: -1.7 | F34: 43 | G34: 74 | H34: 5.4 | I34: . | L34: 6.2 | M34: 1028.8 | N34: 1.5 | O34: 4 | V34: 23
A35: 26. | B35: 5.9 | C35: 12.2 | D35: 0.2 | E35: -1.1 | F35: 45 | G35: 72 | H35: 3.9 | I35: . | L35: 7.8 | M35: 1026.3 | N35: 0.9 | O35: 4 | V35: 24
A36: 27. | B36: 7.9 | C36: 16.7 | D36: -0.3 | E36: -2.2 | F36: 32 | G36: 63 | H36: 0.4 | I36: . | L36: 9.4 | M36: 1026.6 | N36: 0.6 | O36: 2 | V36: 16
A37: 28. | B37: 11.8 | C37: 20.3 | D37: 3.3 | E37: 0.6 | F37: 30 | G37: 59 | H37: 0.4 | I37: . | L37: 9.5 | M37: 1022.1 | N37: 3.1 | O37: 4 | V37: 27
A38: 29. | B38: 13.4 | C38: 17.1 | D38: 9.2 | E38: 6.1 | F38: 53 | G38: 66 | H38: 5.7 | I38: 0.4 | J38: l | L38: 2.2 | M38: 1022.5 | N38: 7 | O38: 8 | R38: 1 | T38: 1 | V38: 42
A39: 30. | B39: 12.9 | C39: 17.4 | D39: 9 | E39: 6.1 | F39: 61 | G39: 80 | H39: 6 | I39: 0.1 | J39: l | L39: 0.9 | M39: 1025.8 | N39: 9.6 | O39: 3 | R39: 1 | V39: 23
A40: 31. | B40: 14.7 | C40: 22.1 | D40: 6.7 | E40: 4.4 | F40: 45 | G40: 71 | H40: 2.9 | I40: . | L40: 9.3 | M40: 1019.1 | N40: 8.8 | O40: 8 | V40: 34
A41: Su | B41: =SUM(B30:B40) -> 103.7 | C41: =SUM(C30:C40) -> 162.3 | D41: =SUM(D30:D40) -> 43.8 | E41: =SUM(E30:E40) -> 23.3 | F41: XXX | G41: XXX | H41: XXX | I41: =SUM(I30:I40) -> 4.9 | J41: XX | L41: =SUM(L30:L40) -> 54.5 | M41: XXX | N41: XXX | O41: XXX | P41: XXX | Q41: T | R41: =SUM(R30:R40) -> 4 | S41: =SUM(S30:S40) -> 0 | T41: =SUM(T30:T40) -> 2 | U41: =SUM(U30:U40) -> 0 | V41: XXX
A42: Mi | B42: =AVERAGE(B30:B40) -> 9.427272727 | C42: 14.75454545 | D42: 3.981818182 | E42: 2.118181818 | F42: 53.36363636 | G42: 74.36363636 | H42: 4.709090909 | I42: XXX | J42: XX | L42: XXX | M42: =AVERAGE(M30:M40) -> 1022.218182 | N42: =AVERAGE(N30:N40) -> 4.672727273 | O42: =AVERAGE(O30:O40) -> 5.272727273 | P42: =AVERAGE(P30:P40) ->  | Q42: X | R42: XX | S42: XX | T42: XX | U42: XX | V42: =AVERAGE(V30:V40) -> 26
A43: MSu | B43: =SUM(B16+B28+B41) -> 237.5 | C43: =SUM(C16+C28+C41) -> 377.1 | D43: =SUM(D16+D28+D41) -> 100.9 | E43: =SUM(E16+E28+E41) -> 43.8 | F43: XXX | G43: XXX | H43: XXX | I43: =SUM(I16+I28+I41) -> 45.7 | J43: XX | L43: =SUM(L16+L28+L41) -> 99.8 | M43: XXX | N43: XXX | O43: XXX | P43: XXX | Q43: X | R43: =SUM(R16+R28+R41) -> 15 | S43: =SUM(S16+S28+S41) -> 0 | T43: =SUM(T16+T28+T41) -> 12 | U43: =SUM(U16+U28+U41) -> 2 | V43: XXX
A44: MMi | B44: =AVERAGE(B6:B15,B18:B27,B30:B40) -> 7.661290323 | C44: 12.16451613 | D44: 3.25483871 | E44: 1.412903226 | F44: 58.74193548 | G44: 77.16129032 | H44: 5.712903226 | I44: XXXXX | J44: XX | L44: XXXX | M44: =AVERAGE(M6:M15,M18:M27,M30:M40) -> 1017.035484 | N44: =AVERAGE(N6:N15,N18:N27,N30:N40) -> 3.603225806 | O44: =AVERAGE(O6:O15,O18:O27,O30:O40) -> 7.580645161 | P44: =AVERAGE(P17,P29,P42) ->  | Q44: X | R44: XX | S44: XX | T44: XX | U44: XX | V44: =AVERAGE(V17,V29,V42) -> 35.86666667
B46: Norm | C46: % v N.- | D46: Abw. | E46: Zahl der Tage | L46: Niederschlag mm | P46: Sonnensch.-dauer Std
B47: wert | C47: wert | D47: K | E47: Max.d.Lufttemp.°C | L47: >/= 0,1 | O47: =SUM(AE7:AE9) -> 15 | P47: ohne Sonne | V47: =SUM(AA17:AA19) -> 1
A48: TTT | B48: 4.5 | C48: XXXX | D48: =SUM(B44-B48) -> 3.161290323 | E48: Tropentag/Hitzetag | I48: =SUM(AA7:AA9) -> 0 | L48: >/= 1,0 | O48: =SUM(AF7:AF9) -> 8 | P48: 0,1 bis 0,9 | V48: =SUM(AB17:AB19) -> 11
A49: RRR | B49: 45 | C49: =SUM(I43*100/B49) -> 101.5555556 | D49: XXXX | E49: Sommertag | I49: =SUM(AB7:AB9) -> 0 | L49: >/= 3,0 | O49: =SUM(AG7:AG9) -> 7 | P49: >/= 10,0 | V49: =SUM(AC17:AC19) -> 0
A50: sss | B50: 113 | C50: =SUM(L43*100/B50) -> 88.31858407 | D50: XXXX | E50: Eistag | I50: =SUM(AC7:AC9) -> 0 | L50: >/=10,0 | O50: =SUM(AH7:AH9) -> 0 | P50: Schneedecke cm
A51: astr. | D51: XXXX | E51: Polartag | I51: 0 | L51: >/= 20,0 | O51: =SUM(AI7:AI9) -> 0 | P51: >/= 1 | V51: =SUM(AE17:AE19) -> 0
A52: mgl. | B52: 366 | C52: =SUM(L43*100/B52) -> 27.26775956 | D52: XXXX | E52: Min.d.Lufttemp.°C | L52: Rel. Luftfeuchte 14 Uhr | P52: >/= 3 | V52: =SUM(AF17:AF19) -> 0
A53: sss | D53: XXXX | E53: Frosttag | I53: =SUM(AA12:AA14) -> 4 | L53: >/=70% | O53: =SUM(AE12:AE14) -> 6 | P53: >/= 10 | V53: =SUM(AG17:AG19) -> 0
E54: Tropennacht | I54: 0 | L54: </=40% | O54: =SUM(AG12:AG14) -> 2
E57: Unter "Tage mit" sind die Angaben Bft 6 & Bft 8 nicht 10 min. - Mittel sonder 2,5 s - Werte.
E58: Wenn ein Wert auch mit einem 10 min. - Wert erreicht wird, erfolgt eine rote Markierung.
E59: Dies gilt rückwirkend bis November 2012.
F113: Tage mit Bft 6 /8 eigentlich in 10 min. - Mittel

Sheet Sichtst.
E1: Sichtweitenstatistik
B5: Wetterstation: Köttewitz | F5: Monat: | G5: März | K5: Jahr: | L5: 2017
A7: Dat. | B7: Nebeldauer | C7: Nebel | D7: Dunst | E7: Sicht | F7: Sicht | G7: Sicht | H7: Sicht
B8: in St. u. Min. | E8: mittel | F8: normal | G8: gut | H8: sehr gut
A9: 01. | B9: - | C9: - | D9: - | E9: - | F9: 1 | G9: 1 | H9: - | N9: =IF(ISNUMBER(B9),B9*24," ") ->  | O9: =IF(ISNUMBER(N9),IF(N9<1,1," ")," ") ->  | P9: =IF(ISNUMBER(N9),IF(N9<8,2," ")," ") ->  | Q9: =IF(ISNUMBER(N9),IF(N9<24,3," ")," ") ->  | R9: =MIN(O9:Q9) -> 0
A10: 02. | B10: - | C10: =IF(R10=1,1,"-") -> - | D10: - | E10: - | F10: 1 | G10: 1 | H10: - | R10: 0
A11: 03. | B11: - | C11: - | D11: - | E11: - | F11: 1 | G11: - | H11: - | R11: 0
A12: 04. | B12: - | C12: =IF(R12=1,1,"-") -> - | D12: - | E12: - | F12: 1 | G12: - | H12: - | R12: 0
A13: 05. | B13: - | C13: =IF(R13=1,1,"-") -> - | D13: - | E13: - | F13: 1 | G13: 1 | H13: 1 | R13: 0
A14: 06. | B14: - | C14: - | D14: - | E14: - | F14: 1 | G14: 1 | H14: - | R14: 0
A15: 07. | B15: - | C15: - | D15: 1 | E15: 1 | F15: 1 | G15: - | H15: - | R15: 0
A16: 08. | B16: - | C16: =IF(R16=1,1,"-") -> - | D16: - | E16: 1 | F16: 1 | G16: - | H16: - | R16: 0
A17: 09. | B17: - | C17: - | D17: - | E17: 1 | F17: 1 | G17: - | H17: - | R17: 0
A18: 10. | B18: - | C18: - | D18: 1 | E18: 1 | F18: 1 | G18: - | H18: - | R18: 0
A19: 11. | B19: - | C19: - | D19: - | E19: - | F19: 1 | G19: - | H19: - | R19: 0
A20: 12. | B20: - | C20: - | D20: - | E20: - | F20: 1 | G20: - | H20: - | R20: 0
A21: 13. | B21: - | C21: - | D21: - | E21: - | F21: 1 | G21: - | H21: - | R21: 0
A22: 14. | B22: - | C22: =IF(R22=1,1,"-") -> - | D22: - | E22: - | F22: 1 | G22: - | H22: - | R22: 0
A23: 15. | B23: - | C23: - | D23: - | E23: 1 | F23: 1 | G23: - | H23: - | R23: 0
A24: 16. | B24: - | C24: - | D24: - | E24: - | F24: 1 | G24: - | H24: - | R24: 0
A25: 17. | B25: - | C25: - | D25: - | E25: 1 | F25: 1 | G25: - | H25: - | R25: 0
A26: 18. | B26: - | C26: - | D26: - | E26: 1 | F26: 1 | G26: - | H26: - | R26: 0
A27: 19. | B27: - | C27: - | D27: - | E27: - | F27: 1 | G27: - | H27: - | R27: 0
A28: 20. | B28: - | C28: - | D28: - | E28: - | F28: 1 | G28: - | H28: - | R28: 0
A29: 21. | B29: - | C29: - | D29: - | E29: 1 | F29: 1 | G29: 1 | H29: - | R29: 0
A30: 22. | B30: - | C30: - | D30: - | E30: 1 | F30: 1 | G30: - | H30: - | R30: 0
A31: 23. | B31: - | C31: - | D31: - | E31: 1 | F31: 1 | G31: - | H31: - | R31: 0
A32: 24. | B32: - | C32: - | D32: - | E32: 1 | F32: 1 | G32: - | H32: - | R32: 0
A33: 25. | B33: - | C33: - | D33: - | E33: - | F33: 1 | G33: - | H33: - | R33: 0
A34: 26. | B34: - | C34: - | D34: - | E34: - | F34: 1 | G34: 1 | H34: - | R34: 0
A35: 27. | B35: - | C35: - | D35: - | E35: - | F35: 1 | G35: 1 | H35: - | R35: 0
A36: 28. | B36: - | C36: - | D36: - | E36: - | F36: 1 | G36: 1 | H36: - | R36: 0
A37: 29. | B37: - | C37: - | D37: - | E37: - | F37: 1 | G37: - | H37: - | R37: 0
A38: 30. | B38: - | C38: - | D38: - | E38: - | F38: 1 | G38: - | H38: - | R38: 0
A39: 31. | B39: - | C39: - | D39: - | E39: 1 | F39: 1 | G39: - | H39: - | R39: 0
A40: Su. | B40: =SUM(B9:B39) -> 00:00:00 | C40: 0 | D40: 2 | E40: 12 | F40: 31 | G40: 8 | H40: 1
B42: Anzahl der Nebeltage : | E42: =SUM(C40) -> 0
B43: Anzahl der Tage Sicht >= 50 km : | E43: =SUM(G40) -> 8

Sheet Monatsdiagramm
A1: Klimadiagramm | C1: Wetterstation Köttewitz | I1: (211 m ü. NHN)
A3: März 2017
C5: aktuell | D5: langj. Mittel | E5: Abw. vom lj. Mittel
B6: höchste Temperatur (°C): | C6: =MAX('Daten für Diagr.'!C2:C32) -> 22.1 | D6: am | E6: 2017-03-31
B7: mittlere Temperatur (°C): | C7: ='Daten für Diagr.'!B33 -> 7.661290323 | D7: =Kurztabelle!B48 -> 4.5 | E7: =C7-D7 -> 3.161290323 | F7: K
B8: tiefste Temperatur (°C): | C8: =MIN('Daten für Diagr.'!D2:D32) -> -2.2 | D8: am | E8: 2017-03-13
B9: Niederschlagshöhe (mm): | C9: =Kurztabelle!I43 -> 45.7 | D9: =Kurztabelle!B49 -> 45 | E9: =100/D9*C9 -> 101.5555556 | F9: %
B10: Sonnenscheindauer (Std.)*: | C10: =Kurztabelle!L43 -> 99.8 | D10: =Kurztabelle!B50 -> 113 | E10: =100/D10*C10 -> 88.31858407 | F10: %
A66: *Die Wetterstation kann, durch geographische Hindernisse, nicht die maximal mögliche Sonnenscheindauer aufzeichnen. Es gilt ein Übergangsprozentsatz von: Dez 30 %; Okt/Nov & Jan/Feb 40 %; Mär & Sep 65 %; Apr & Aug 80 %; Mai - Jul 90 %.
A67: Diese Werte entsprechend annähernd 100 % (Normalwert Köttewitz). Nach 10 Jahren erfolgt die Umstellung des Prozentsatzes nach der örtlichen Aufzeichnung.

Sheet Daten für Diagr.
B1: Td | C1: Tmax | D1: Tmin | E1: RR | F1: Schnee | G1: Sonne | H1: Luftdr. | I1: MWT | J1: GWL | K1: Name | L1: Sonstiges
A2: 2017-03-01 | B2: 6.1 | C2: 9.6 | D2: 2.7 | E2: 0.6 | G2: 0.9 | H2: 1002 | I2: 1.5 | L2: Von 12:00 Uhr - 12:34 Uhr; Um 13:20 Uhr mäßiger Regen (WW 63). Um 19:20 Uhr; Von 19:20 Uhr - 20:39 Uhr leichter Regen (WW 61).
A3: 2017-03-02 | B3: 6.9 | C3: 10.5 | D3: 4.7 | E3: 0.6 | G3: 2.8 | H3: 1006.3 | I3: 1.65 | K3: T Wilfried | L3: Von 10:20 Uhr - 10:29 Uhr mäßiger Regenschauer (WW 81). Von 12:40 Uhr - 12:49 Uhr leichter Regenschauer (WW 80). Gegen 01:00 Uhr; 02:30 Uhr; 03:45 Uhr; Zwischen 04:30 Uhr - 05:19 Uhr; Um 08:50 Uhr; Von 14:10 Uhr - Uhr leichter Regen (WW 61).
A4: 2017-03-03 | B4: 7.5 | C4: 11.5 | D4: 2.2 | G4: 6.7 | H4: 1012.8 | I4: 1.8 | J4: SWz
A5: 2017-03-04 | B5: 9.5 | C5: 14.5 | D5: 5.2 | G5: 4.1 | H5: 999.5 | I5: 1.95 | K5: T Xaver
A6: 2017-03-05 | B6: 9.2 | C6: 12.6 | D6: 6.8 | E6: 0.1 | G6: 0.1 | H6: 1002.1 | I6: 2.15
A7: 2017-03-06 | B7: 4.9 | C7: 7.8 | D7: 2.6 | E7: 7.4 | G7: 0.6 | H7: 1001.4 | I7: 2.35 | J7: TrM | K7: T Yannik | L7: Von 15:00 Uhr - 15:09 Uhr; 15:50 Uhr - 15:59 Uhr; 17:55 Uhr - 18:14 Uhr mäßiger Regenschauer (WW 81). Von 14:50 Uhr - 14:59 Uhr; 15:10 Uhr - 15:19 Uhr; 15:40 Uhr - 15:49 Uhr; 16:00 Uhr - 16:09 Uhr; 18:15 Uhr - 18:29 Uhr leichter Regenschauer (WW 80). Von 03:00 Uhr - 03:40 Uhr; 12:50 Uhr - 13:49 Uhr; 22:30 Uhr - 23:49 Uhr leichter Regen (WW 61). Von 10:30 Uhr - 11:24 Uhr Regentropfen (WW 60).
A8: 2017-03-07 | B8: 3.1 | C8: 4.5 | D8: 2 | H8: 1011.1 | I8: 2.55 | K8: T Zeus | L8: Von 07:30 Uhr - 07:59 Uhr mäßiger Schneeregen (WW 69). Von 02:10 Uhr - 02:49 Uhr; 06:30 Uhr - 07:29 Uhr; 08:00 Uhr - 08:29 Uhr mäßiger Regen (WW 63). Von 02:50 Uhr - 03:39 Uhr; 04:05 Uhr - 04:44 Uhr; Um 05:30 Uhr; Von 06:00 Uhr - 06:29 Uhr; 08:30 Uhr - 09:09 Uhr; 10:05 Uhr - 10:34 Uhr; 12:20 Uhr - 13:29 Uhr leichter Regen (WW 61).
A9: 2017-03-08 | B9: 5.3 | C9: 9.8 | D9: 1.4 | E9: 4.8 | G9: 2.1 | H9: 1020.9 | I9: 2.75 | J9: Wa | K9: H Johanna | L9: Um 02:30 Uhr; 21:45 Uhr - 23:59 Uhr mäßiger Regen (WW 63). Von 20:50 Uhr - 21:44 Uhr leichter Regen (WW 61).
A10: 2017-03-09 | B10: 7.3 | C10: 11.6 | D10: 4.2 | E10: 8.9 | G10: 1.2 | H10: 1016.4 | I10: 2.95 | J10: NWz | K10: T Adriano | L10: Von 20:30 Uhr - 20:49 Uhr mäßiger Regenschauer (WW 81). Von 19:10 Uhr - 19:29 Uhr; 20:20 Uhr - 20:29 Uhr leichter Regenschauer (WW 80). Von 00:00 Uhr - 02:09 Uhr mäßiger Regen (WW 63). Von 02:10 Uhr - 02:14 Uhr; 22:40 Uhr - 22:59 Uhr leichter Regen (WW 61).
A11: 2017-03-10 | B11: 5.6 | C11: 7.8 | D11: 4.2 | E11: 1.4 | G11: 0.3 | H11: 1021.8 | I11: 3.15 | J11: HM | K11: H Johanna | L11: Von 01:30 Uhr - 02:09 Uhr; 02:30 Uhr - 02:39 Uhr mäßiger Regenschauer (WW 81). Von 02:10 Uhr - 02:29 Uhr leichter Regenschauer (WW 80). Von 02:40 Uhr - 09:19 Uhr mäßiger Regen, unterbrochen (WW 62). Um 11:30 Uhr leichter Regen (WW 61).
A12: 2017-03-11 | B12: 4.8 | C12: 8.3 | D12: 0.1 | G12: 0.3 | H12: 1025.6 | I12: 3.35
A13: 2017-03-12 | B13: 2.8 | C13: 8.4 | D13: -1.9 | G13: 3.7 | H13: 1022.8 | I13: 3.55 | L13: Zwischen 04:00 Uhr - 06:59 Uhr Elbtalnebel (WW 40).
A14: 2017-03-13 | B14: 3.7 | C14: 9.3 | D14: -2.2 | G14: 3.8 | H14: 1026.2 | I14: 3.75
A15: 2017-03-14 | B15: 7.1 | C15: 11.7 | D15: 2 | G15: 1.9 | H15: 1029.4 | I15: 3.95 | J15: Wa | K15: H Kathrin
A16: 2017-03-15 | B16: 9.4 | C16: 12.4 | D16: 4.3 | G16: 3.7 | H16: 1028.4 | I16: 4.15 | J16: NWa
A17: 2017-03-16 | B17: 7.4 | C17: 13 | D17: 3.8 | G17: 8.3 | H17: 1024.7 | I17: 4.35 | J17: HM
A18: 2017-03-17 | B18: 7.4 | C18: 14.3 | D18: 2.7 | E18: 6.9 | G18: 2.2 | H18: 1013 | I18: 4.55 | J18: Wz | K18: T Christoph | L18: Um 15:50 Uhr; 16:55 Uhr - 17:09 Uhr; 17:40 Uhr - 18:39 Uhr mäßiger Regen (WW 63). Von 17:10 Uhr - 17:39 Uhr; 18:40 Uhr - 18:49 Uhr leichter Regen (WW 61).
A19: 2017-03-18 | B19: 6.6 | C19: 10.2 | D19: 3 | E19: 4.8 | G19: 0.1 | H19: 1003.5 | I19: 4.75 | K19: T Eckhardt | L19: Von 14:50 Uhr - 14:59 Uhr starker Regenschauer (WW 81). Von 14:10 Uhr - 14:19 Uhr starker Regen (WW 65). Von 03:00 Uhr - 05:29 Uhr; 13:25 Uhr - 14:09 Uhr mäßiger Regen (WW 63). Von 01:40 Uhr - 02:59 Uhr; 05:30 Uhr - 10:49 Uhr; 12:40 Uhr - 13:24 Uhr leichter Regen (WW 61).
A20: 2017-03-19 | B20: 7.6 | C20: 12.2 | D20: 3 | E20: 5.1 | G20: 0.7 | H20: 1007.9 | I20: 4.9 | L20: Von 12:10 Uhr - 13:09 Uhr; 15:00 Uhr - 17:19 Uhr mäßiger Regen (WW 63). Von 13:40 Uhr - 14:59 Uhr; 17:20 Uhr - 18:09 Uhr mäßiger Regen, unterbrochen (WW 62). Von 10:10 Uhr - 12:09 Uhr; 13:10 Uhr - 13:39 Uhr leichter Regen (WW 61).
A21: 2017-03-20 | B21: 11.6 | C21: 14.8 | D21: 9.6 | G21: 1.9 | H21: 1007.9 | I21: 5.05 | K21: T Falk
A22: 2017-03-21 | B22: 10.4 | C22: 13.9 | D22: 5.4 | E22: 4 | G22: 0.4 | H22: 1009 | I22: 5.2 | J22: TrW | K22: T Gregor | L22: Von 18:10 Uhr - 18:29 Uhr; 20:10 Uhr - 22:39 Uhr; 22:50 Uhr - 23:49 Uhr mäßiger Regen (WW 63). Um 15:20 Uhr; 15:55 Uhr - 16:29 Uhr; 18:30 Uhr - 19:39 Uhr; 22:40 Uhr - 22:49 Uhr leichter Regen (WW 61).
A23: 2017-03-22 | B23: 6.5 | C23: 9.7 | D23: 4.7 | E23: 0.4 | G23: 0.1 | H23: 1016.7 | I23: 5.35 | L23: Von 18:10 Uhr - 20:04 Uhr; 20:20 Uhr - 20:39 Uhr leichter Regen (WW 61). Von 17:40 Uhr - 18:09 Uhr Regentropfen (WW 60).
A24: 2017-03-23 | B24: 6.6 | C24: 9.3 | D24: 3.4 | G24: 0.5 | H24: 1018.8 | I24: 5.5 | L24: Gegen 09:05 Uhr leichter Regen (WW 61).
A25: 2017-03-24 | B25: 7.4 | C25: 11.7 | D25: 2.4 | G25: 8.2 | H25: 1028.7 | I25: 5.65 | J25: BM | K25: H Ludwiga
A26: 2017-03-25 | B26: 6.2 | C26: 11.9 | D26: -0.2 | G26: 6.2 | H26: 1028.8 | I26: 5.8
A27: 2017-03-26 | B27: 5.9 | C27: 12.2 | D27: 0.2 | G27: 7.8 | H27: 1026.3 | I27: 5.95
A28: 2017-03-27 | B28: 7.9 | C28: 16.7 | D28: -0.3 | G28: 9.4 | H28: 1026.6 | I28: 6.1 | J28: HM
A29: 2017-03-28 | B29: 11.8 | C29: 20.3 | D29: 3.3 | G29: 9.5 | H29: 1022.1 | I29: 6.25 | J29: SWa
A30: 2017-03-29 | B30: 13.4 | C30: 17.1 | D30: 9.2 | E30: 0.4 | G30: 2.2 | H30: 1022.5 | I30: 6.4 | K30: H Marrit | L30: Zwischen 17:00 Uhr und 18:00 Uhr; vor Mitternacht Regentropfen (WW 60).
A31: 2017-03-30 | B31: 12.9 | C31: 17.4 | D31: 9 | E31: 0.1 | G31: 0.9 | H31: 1025.8 | I31: 6.55 | L31: Von 06:50 Uhr - 07:59 Uhr leichter Regen (WW 61). In der Nacht Regentropfen (WW 60).
A32: 2017-03-31 | B32: 14.7 | C32: 22.1 | D32: 6.7 | G32: 9.3 | H32: 1019.1 | I32: 6.7
A33: Durchschnitt | B33: =AVERAGE(B2:B32) -> 7.661290323 | C33: =AVERAGE(C2:C32) -> 12.16451613 | D33: =AVERAGE(D2:D32) -> 3.361290323 | E33: - | G33: =AVERAGE(G2:G32) -> 3.33 | H33: =AVERAGE(H2:H32) -> 1017.035484 | I33: =AVERAGE(I2:I32) -> 4.212903226
A34: Mittel | B34: 4.5 | E34: 45 | F34: - | G34: 113 | H34: 1016.3
A90: 1
A91: 2
A92: 3
A93: 4
A94: 5
A95: 6
A96: 7
A97: 8
A98: 9
A99: 10
A100: 11
A101: 12
A102: 13
A103: 14
A104: 15
A105: 16
A106: 17
A107: 18
A108: 19
A109: 20
A110: 21
A111: 22
A112: 23
A113: 24
A114: 25
A115: 26
A116: 27
A117: 28
A118: 29
A119: 30
A120: 31

Sheet Erdboden
F1: Erdbodenstatistik
B3: Wetterstation: | C3: Köttewitz | E3: Monat: | F3: März | J3: Jahr: | K3: 2017
A5: Dat. | B5: Temperatur | C5: Temperatur | D5: Temperatur | E5: Temperatur | F5: NN | G5: 0 °C - Grenze | H5: 5 °C - Grenze | I5: 10 °C - Grenze | J5: 15 °C - Grenze | K5: 20 °C - Grenze
B6: 5 cm | C6: -10 cm | D6: - 20 cm | E6: - 35 cm
A7: 01. | B7: 1,7 °C/10,0 °C/2,8 °C | C7: 3,3 °C/5,6 °C/4,4 °C | D7: 4,4 °C/5,0 °C/5,0 °C | E7: 5,0 °C/5,0 °C/5,0 °C | F7: t | G7: - | H7: 35 cm | I7: - | J7: - | K7: -
A8: 02. | B8: 5,0 °C/8,9 °C/3,9 °C | C8: 3,9 °C/6,7 °C/5,6 °C | D8: 4,4 °C/5,6 °C/5,0 °C | E8: 5,0 °C/5,0 °C/5,0 °C | F8: t | G8: - | H8: 35 cm | I8: - | J8: - | K8: -
A9: 03. | B9: 1,7 °C/12,8 °C/7,8 °C | C9: 3,3 °C/7,8 °C/5,6 °C | D9: 3,9 °C/6,1 °C/5,6 °C | E9: 5,0 °C/5,0 °C/5,0 °C | F9: n | G9: - | H9: 35 cm | I9: - | J9: - | K9: -
A10: 04. | B10: 4,4 °C/15,6 °C/6,1 °C | C10: 3,9 °C/8,3 °C/6,7 °C | D10: 4,4 °C/6,7 °C/6,7 °C | E10: 5,0 °C/5,0 °C/5,6 °C | F10: t | G10: - | H10: 41 cm | I10: - | J10: - | K10: -
A11: 05. | B11: 3,3 °C/13,3 °C/2,8 °C | C11: 5,6 °C/7,8 °C/6,1 °C | D11: 6,1 °C/6,7 °C/6,7 °C | E11: 5,6 °C/5,6 °C/6,1 °C | F11: n | G11: - | H11: > 50 cm | I11: - | J11: - | K11: -
A12: 06. | B12: 3,9 °C/6,7 °C/2,8 °C | C12: 4,4 °C/6,7 °C/5,6 °C | D12: 5,0 °C/6,1 °C/5,6 °C | E12: 5,6 °C/5,6 °C/5,6 °C | F12: t | G12: - | H12: > 50 cm | I12: - | J12: - | K12: -
A13: 07. | B13: 2,8 °C/3,3 °C/2,2 °C | C13: 5,0 °C/5,6 °C/4,4 °C | D13: 5,0 °C/5,6 °C/5,0 °C | E13: 5,6 °C/5,6 °C/5,6 °C | F13: t | G13: - | H13: < 15 > 50 cm | I13: - | J13: - | K13: -
A14: 08. | B14: 0,0 °C/11,7 °C/5,6 °C | C14: 3,3 °C/7,2 °C/6,1 °C | D14: 3,9 °C/5,6 °C/6,1 °C | E14: 5,0 °C/5,0 °C/5,6 °C | F14: t | G14: - | H14: > 50 cm | I14: - | J14: - | K14: -
A15: 09. | B15: 5,6 °C/13,9 °C/5,0 °C | C15: 5,6 °C/8,9 °C/7,2 °C | D15: 5,6 °C/7,2 °C/7,2 °C | E15: 5,6 °C/5,6 °C/6,1 °C | F15: t | G15: - | H15: > 50 cm | I15: - | J15: - | K15: -
A16: 10. | B16: 3,9 °C/7,2 °C/4,4 °C | C16: 5,6 °C/6,7 °C/6,1 °C | D16: 6,1 °C/6,1 °C/6,1 °C | E16: 6,1 °C/6,1 °C/6,1 °C | F16: t | G16: - | H16: > 50 cm | I16: - | J16: - | K16: -
A17: 11. | B17: 1,1 °C/10,6 °C/0,6 °C | C17: 3,9 °C/7,8 °C/5,6 °C | D17: 4,4 °C/6,1 °C/6,1 °C | E17: 5,6 °C/5,6 °C/6,1 °C | F17: n | G17: - | H17: < 6 > 50 cm | I17: - | J17: - | K17: -
A18: 12. | B18: -3,3 °C/7,8 °C/3,3 °C | C18: 2,8 °C/5,6 °C/4,4 °C | D18: 3,9 °C/5,0 °C/5,0 °C | E18: 5,6 °C/5,0 °C/5,0 °C | F18: n | G18: - | H18: < 30 > 50 cm | I18: - | J18: - | K18: -
A19: 13. | B19: -2,2 °C/12,2 °C/4,4 °C | C19: 2,2 °C/6,7 °C/5,6 °C | D19: 3,3 °C/5,0 °C/5,6 °C | E19: 5,0 °C/5,0 °C/5,0 °C | F19: t | G19: - | H19: < 28 > 50 cm | I19: - | J19: - | K19: -
A20: 14. | B20: 3,9 °C/13,3 °C/5,0 °C | C20: 3,3 °C/7,8 °C/6,7 °C | D20: 3,3 °C/6,1 °C/6,7 °C | E20: 5,0 °C/5,0 °C/5,6 °C | F20: t | G20: - | H20: > 50 cm | I20: - | J20: - | K20: -
A21: 15. | B21: 8,3 °C/15,0 °C/4,4 °C | C21: 6,1 °C/9,4 °C/6,7 °C | D21: 6,1 °C/7,8 °C/6,7 °C | E21: 5,6 °C/6,1 °C/6,1 °C | F21: n | G21: - | H21: > 50 cm | I21: - | J21: - | K21: -
A22: 16. | B22: 2,8 °C/16,7 °C/2,8 °C | C22: 3,9 °C/10,0 °C/6,7 °C | D22: 5,0 °C/7,8 °C/7,2 °C | E22: 6,1 °C/6,1 °C/6,1 °C | F22: n | G22: - | H22: > 50 cm | I22: - | J22: - | K22: -
A23: 17. | B23: 2,2 °C/13,9 °C/4,4 °C | C23: 3,3 °C/7,8 °C/6,7 °C | D23: 5,0 °C/6,7 °C/6,7 °C | E23: 6,1 °C/6,1 °C/6,1 °C | F23: n | G23: - | H23: > 50 cm | I23: - | J23: - | K23: -
A24: 18. | B24: 3,3 °C/8,3 °C/5,6 °C | C24: 5,0 °C/7,8 °C/6,7 °C | D24: 5,6 °C/6,7 °C/6,7 °C | E24: 6,1 °C/6,1 °C/6,1 °C | F24: t | G24: - | H24: > 50 cm | I24: - | J24: - | K24: -
A25: 19. | B25: 2,2 °C/7,8 °C/10,0 °C | C25: 4,4 °C/7,2 °C/7,8 °C | D25: 5,0 C/6,7 °C/7,2 °C | E25: 6,1 °C/6,1 °C/6,1 °C | F25: t | G25: - | H25: > 50 cm | I25: - | J25: - | K25: -
A26: 20. | B26: 9,4 °C/16,1 °C/9,4 °C | C26: 7,2 °C/11,7 °C/9,4 °C | D26: 7,2 °C/8,9 °C/9,4 °C | E26: 6,7 °C/6,7 °C/7,2 °C | F26: t | G26: - | H26: > 50 cm | I26: 5 cm | J26: - | K26: -
A27: 21. | B27: 9,4 °C/15,0 °C/6,7 °C | C27: 7,8 °C/11,0 °C/9,4 °C | D27: 7,8 °C/9,4 °C/9,4 °C | E27: 7,8 °C/7,8 °C/7,8 °C | F27: t | G27: - | H27: > 50 cm | I27: - | J27: - | K27: -
A28: 22. | B28: 4,4 °C/11,1 °C/5,0 °C | C28: 6,7 °C/8,9 °C/7,2 °C | D28: 7,8 °C/8,3 °C/7,8 °C | E28: 7,8 °C/7,8 °C/7,8 °C | F28: t | G28: - | H28: > 50 cm | I28: - | J28: - | K28: -
A29: 23. | B29: 3,9 °C/11,7 °C/7,2 °C | C29: 5,6 °C/8,9 °C/8,3 °C | D29: 6,7 °C/7,8 °C/8,3 °C | E29: 7,2 °C/7,2 °C/7,8 °C | F29: t | G29: - | H29: > 50 cm | I29: - | J29: - | K29: -
A30: 24. | B30: 5,6 °C/16,7 °C/2,8 °C | C30: 6,7 °C/11,7 °C/7,8 °C | D30: 7,2 °C/9,4 °C/8,9 °C | E30: 7,8 °C/7,8 °C/7,8 °C | F30: n | G30: - | H30: > 50 cm | I30: - | J30: - | K30: -
A31: 25. | B31: 1,1 °C/15,0 °C/4,4 °C | C31: 3,9 °C/10,0 °C/7,8 °C | D31: 5,6 °C/8,3 °C/8,3 °C | E31: 7,2 °C/7,2 °C/7,8 °C | F31: n | G31: - | H31: > 50 cm | I31: - | J31: - | K31: -
A32: 26. | B32: 1,1 °C/17,8 °C/2,8 °C | C32: 3,9 °C/10,6 °C/6,7 °C | D32: 5,6 °C/8,9 °C/7,8 °C | E32: 7,2 °C/7,2 °C/7,8 °C | F32: n | G32: - | H32: > 50 cm | I32: - | J32: - | K32: -
A33: 27. | B33: 0,6 °C/21,1 °C/5,0 °C | C33: 3,3 °C/11,7 °C/8,3 °C | D33: 5,0 °C/8,9 °C/8,9 °C | E33: 6,7 °C/6,7 °C/7,8 °C | F33: h | G33: - | H33: > 50 cm | I33: - | J33: - | K33: -
A34: 28. | B34: 3,3 °C/25,6 °C/7,8 °C | C34: 4,4 °C/13,9 °C/10,6 °C | D34: 6,1 °C/10,6 °C/10,6 °C | E34: 7,2 °C/7,2 °C/8,3 °C | F34: h | G34: - | H34: > 50 cm | I34: 9 cm | J34: - | K34: -
A35: 29. | B35: 9,4 °C/16,7 °C/11,1 °C | C35: 8,3 °C/12,2 °C/11,1 °C | D35: 7,8 °C/10,6 °C/10,6 °C | E35: 8,3 °C/8,3 °C/8,9 °C | F35: n | G35: - | H35: > 50 cm | I35: 19 cm | J35: - | K35: -
A36: 30. | B36: 10,0 °C/20,0 °C/8,9 °C | C36: 10,0 °C/13,3 °C/11,7 °C | D36: 9,4 °C/11,7 °C/11,7 °C | E36: 8,9 °C/8,9 °C/9,4 °C | F36: n | G36: - | H36: > 50 cm | I36: 28 cm | J36: - | K36: -
A37: 31. | B37: 8,3 °C/26,1 °C/11,1 °C | C37: 7,8 °C/16,1 °C/13,3 °C | D37: 8,9 °C/12,8 °C/12,8 °C | E37: 9,4 °C/9,4 °C/10,6 °C | F37: n | G37: - | H37: > 50 cm | I37: 35 cm | J37: - | K37: -
B39: Werte von 7 Uhr/14 Uhr/21 Uhr MEZ
B41: Mit Gelb markiert ist der Temperaturbereich des Erdbodens.
